fUST/lending_fUST_20240411
["ID","MTS","AMOUNT","RATE_DAILY","PERIOD"]
[322105194,1712780831343,-4986.89176979,0.00031881,2]
[322105236,1712781031858,-400.0,0.00031746,2]
[322105238,1712781031867,-15621.03012083,0.00031747,2]
[322105262,1712781037802,-9278.96987917,0.00031747,2]
[322105263,1712781037814,-154.84515485,0.00031881,4]
[322105264,1712781037825,-1210.91030182,0.00031927,2]
[322105265,1712781037836,-166.666666,0.00032499,2]
[322105266,1712781037848,-202.7924704,0.00032678,2]
[322105267,1712781037858,-453.3273481,0.000327,2]
[322105268,1712781037869,-202.7924704,0.000327,2]
[322105270,1712781037878,-202.7924704,0.000327,2]
[322105272,1712781037890,-202.7924704,0.000327,2]
[322105274,1712781037902,-202.7924704,0.000327,2]
[322105276,1712781037912,-175.48121488,0.00032776,2]
[322105278,1712781037921,-202.7924704,0.00032778,2]
[322105281,1712781037931,-202.7924704,0.000328,2]
[322105283,1712781037942,-4617.12775145,0.0003286,120]
[322105286,1712781037955,-158.55609735,0.00032874,4]
[322105290,1712781037966,-500.0,0.00032876,5]
[322105293,1712781037976,-500.0,0.00032876,5]
[322105296,1712781037987,-500.0,0.00032876,5]
[322105298,1712781037997,-500.0,0.00032876,5]
[322105300,1712781038007,-500.0,0.00032876,5]
[322105302,1712781038018,-500.0,0.00032876,5]
[322105304,1712781038029,-500.0,0.00032876,5]
[322105305,1712781038042,-500.0,0.00032876,5]
[322105308,1712781038053,-500.0,0.00032876,5]
[322105310,1712781038064,-542.25,0.00032876,5]
[322105312,1712781038073,-500.0,0.00032876,5]
[322105313,1712781038083,-500.0,0.00032876,5]
[322105316,1712781038092,-500.0,0.00032876,5]
[322105317,1712781038102,-969.58,0.00032876,5]
[322105319,1712781038112,-500.0,0.00032876,5]
[322105321,1712781038121,-500.0,0.00032876,5]
[322105323,1712781038130,-500.0,0.00032876,5]
[322105326,1712781038140,-500.0,0.00032876,5]
[322105327,1712781038150,-554.26395971,0.00032876,5]
[322105330,1712781038160,-500.0,0.00032876,5]
[322105331,1712781038170,-918.07,0.00032876,5]
[322105334,1712781038181,-500.0,0.00032876,5]
[322105335,1712781038190,-500.0,0.00032876,5]
[322105336,1712781038200,-500.0,0.00032876,5]
[322105337,1712781038209,-1242.48,0.00032876,5]
[322105338,1712781038220,-500.0,0.00032876,5]
[322105339,1712781038230,-528.0,0.00032876,5]
[322105340,1712781038239,-1700.55,0.00032876,5]
[322105341,1712781038249,-3113.66,0.00032876,5]
[322105342,1712781038263,-500.0,0.00032876,5]
[322105343,1712781038273,-500.0,0.00032876,5]
[322105344,1712781038283,-500.0,0.00032876,5]
[322105345,1712781038293,-500.0,0.00032876,5]
[322105346,1712781038305,-6594.48,0.00032876,5]
[322105347,1712781038315,-500.0,0.00032876,5]
[322105348,1712781038324,-500.0,0.00032876,5]
[322105349,1712781038334,-567.59,0.00032876,5]
[322105350,1712781038343,-5272.48,0.00032876,5]
[322105351,1712781038354,-500.0,0.00032876,5]
[322105352,1712781038365,-2129.47,0.00032876,5]
[322105353,1712781038374,-500.0,0.00032876,5]
[322105354,1712781038383,-769.3,0.00032876,5]
[322105355,1712781038397,-500.0,0.00032876,5]
[322105356,1712781038408,-500.0,0.00032876,5]
[322105357,1712781038419,-500.0,0.00032876,5]
[322105358,1712781038430,-820.65,0.00032876,5]
[322105359,1712781038441,-827.05,0.00032876,5]
[322105360,1712781038451,-838.46,0.00032876,5]
[322105362,1712781038462,-1719.66,0.00032876,5]
[322105364,1712781038472,-1431.09,0.00032876,5]
[322105366,1712781038481,-500.0,0.00032876,5]
[322105367,1712781038492,-731.47,0.00032876,5]
[322105369,1712781038502,-500.0,0.00032876,5]
[322105371,1712781038512,-703.16,0.00032876,5]
[322105373,1712781038522,-500.0,0.00032876,5]
[322105375,1712781038532,-665.14,0.00032876,5]
[322105377,1712781038542,-1196.06,0.00032876,5]
[322105379,1712781038554,-500.0,0.00032876,5]
[322105381,1712781038564,-500.0,0.00032876,5]
[322105383,1712781038575,-500.0,0.00032876,5]
[322105386,1712781038585,-2680.8,0.00032876,5]
[322105388,1712781038595,-500.0,0.00032876,5]
[322105390,1712781038606,-979.58,0.00032876,5]
[322105391,1712781038620,-500.0,0.00032876,5]
[322105394,1712781038630,-529.87758503,0.00032876,5]
[322105396,1712781038645,-2295.42241497,0.00032876,5]
[322105398,1712781038657,-210.74769509,0.00032876,5]
[322105400,1712781038667,-2253.27,0.00032876,5]
[322105401,1712781038676,-500.0,0.00032876,5]
[322105402,1712781038687,-680.04,0.00032876,5]
[322105403,1712781038698,-1263.2,0.00032876,5]
[322105404,1712781038710,-2305.0,0.00032876,5]
[322105405,1712781038720,-500.0,0.00032876,5]
[322105406,1712781038729,-944.34,0.00032876,5]
[322105407,1712781038741,-500.0,0.00032876,5]
[322105408,1712781038751,-500.0,0.00032876,5]
[322105409,1712781038760,-16728.3,0.00032876,5]
[322105410,1712781038772,-500.0,0.00032876,5]
[322105411,1712781038782,-500.0,0.00032876,5]
[322105413,1712781038793,-500.0,0.00032876,5]
[322105415,1712781038803,-3541.98,0.00032876,5]
[322105417,1712781038814,-1126.23,0.00032876,5]
[322105419,1712781038824,-137.46988994,0.00032876,5]
[322105628,1712781042116,-254.51132314,0.00031881,2]
[322105631,1712781042125,-1431.58436728,0.00032876,5]
[322105643,1712781042247,-97.01574278,0.00032876,5]
[322105645,1712781042262,-3602.74637465,0.00032876,5]
[322105648,1712781042277,-12189.79362535,0.00032876,5]
[322105650,1712781042286,-500.0,0.00032876,5]
[322105652,1712781042295,-500.0,0.00032876,5]
[322105654,1712781042304,-500.0,0.00032876,5]
[322105656,1712781042315,-500.0,0.00032876,5]
[322105658,1712781042325,-1078.81,0.00032876,5]
[322105660,1712781042335,-500.0,0.00032876,5]
[322105662,1712781042344,-500.0,0.00032876,5]
[322105665,1712781042364,-1691.69,0.00032876,5]
[322105667,1712781042376,-6365.53,0.00032876,5]
[322105669,1712781042386,-153.0,0.000329,2]
[322105671,1712781042395,-150.0,0.00032971,2]
[322105674,1712781042405,-173.64417349,0.00033072,7]
[322105677,1712781042415,-155.63503246,0.0003309,7]
[322105679,1712781042425,-297.37,0.00033149,2]
[322105681,1712781042434,-297.37,0.00033149,2]
[322105683,1712781042444,-297.37,0.00033149,2]
[322105685,1712781042455,-297.37,0.00033149,2]
[322105687,1712781042465,-297.37,0.00033149,2]
[322105688,1712781042475,-54.48560367,0.00033149,2]
[322105753,1712781043070,-242.89439633,0.00033149,2]
[322105755,1712781043080,-2067.32401823,0.0003315,2]
[322105757,1712781043090,-500.0,0.0003315,5]
[322105759,1712781043100,-385.58510514,0.0003315,5]
[322105760,1712781043110,-500.0,0.0003315,5]
[322105763,1712781043121,-500.0,0.0003315,5]
[322105764,1712781043131,-500.0,0.0003315,5]
[322105766,1712781043141,-500.0,0.0003315,5]
[322105768,1712781043150,-500.0,0.0003315,5]
[322105770,1712781043160,-500.0,0.0003315,5]
[322105772,1712781043170,-500.0,0.0003315,5]
[322105774,1712781043179,-542.25,0.0003315,5]
[322105776,1712781043189,-151.49799,0.0003315,2]
[322105778,1712781043199,-500.0,0.0003315,5]
[322105780,1712781043210,-500.0,0.0003315,5]
[322105782,1712781043220,-500.0,0.0003315,5]
[322105785,1712781043231,-969.58,0.0003315,5]
[322105787,1712781043241,-479.92050313,0.0003315,5]
[322105789,1712781043251,-500.0,0.0003315,5]
[322105790,1712781043261,-30.18034208,0.0003315,5]
[322105793,1712781043275,-302.61772616,0.0003315,5]
[322105795,1712781043288,-167.20193176,0.0003315,5]
[322105797,1712781043298,-173.14610676,0.0003315,5]
[322105799,1712781043310,-326.85389324,0.0003315,5]
[322105801,1712781043320,-39.06625286,0.0003315,5]
[322105804,1712781043333,-460.93374714,0.0003315,5]
[322105806,1712781043344,-918.07,0.0003315,5]
[322105808,1712781043355,-500.0,0.0003315,5]
[322105809,1712781043366,-500.0,0.0003315,5]
[322105811,1712781043376,-500.0,0.0003315,5]
[322105813,1712781043388,-1242.48,0.0003315,5]
[322105815,1712781043400,-500.0,0.0003315,5]
[322105817,1712781043410,-528.0,0.0003315,5]
[322105819,1712781043421,-1700.55,0.0003315,5]
[322105822,1712781043432,-3113.66,0.0003315,5]
[322105823,1712781043443,-500.0,0.0003315,5]
[322105826,1712781043454,-500.0,0.0003315,5]
[322105828,1712781043465,-500.0,0.0003315,5]
[322105829,1712781043476,-500.0,0.0003315,5]
[322105831,1712781043488,-151.0,0.0003315,2]
[322105833,1712781043499,-151.0,0.0003315,2]
[322105836,1712781043510,-151.0,0.0003315,2]
[322105837,1712781043521,-6594.48,0.0003315,5]
[322105839,1712781043532,-500.0,0.0003315,5]
[322105842,1712781043542,-500.0,0.0003315,5]
[322105844,1712781043553,-567.59,0.0003315,5]
[322105846,1712781043564,-5272.48,0.0003315,5]
[322105848,1712781043574,-500.0,0.0003315,5]
[322105850,1712781043586,-2129.47,0.0003315,5]
[322105852,1712781043597,-500.0,0.0003315,5]
[322105854,1712781043608,-769.3,0.0003315,5]
[322105856,1712781043622,-500.0,0.0003315,5]
[322105857,1712781043633,-500.0,0.0003315,5]
[322105859,1712781043644,-500.0,0.0003315,5]
[322105862,1712781043655,-820.65,0.0003315,5]
[322105863,1712781043665,-827.05,0.0003315,5]
[322105866,1712781043676,-838.46,0.0003315,5]
[322105868,1712781043687,-1719.66,0.0003315,5]
[322105869,1712781043697,-1431.09,0.0003315,5]
[322105872,1712781043707,-500.0,0.0003315,5]
[322105873,1712781043716,-731.47,0.0003315,5]
[322105874,1712781043725,-703.16,0.0003315,5]
[322105875,1712781043734,-500.0,0.0003315,5]
[322105876,1712781043743,-665.14,0.0003315,5]
[322105877,1712781043752,-1196.06,0.0003315,5]
[322105878,1712781043761,-500.0,0.0003315,5]
[322105879,1712781043770,-500.0,0.0003315,5]
[322105880,1712781043779,-500.0,0.0003315,5]
[322105881,1712781043788,-2680.8,0.0003315,5]
[322105882,1712781043797,-500.0,0.0003315,5]
[322105883,1712781043806,-979.58,0.0003315,5]
[322105884,1712781043815,-500.0,0.0003315,5]
[322105885,1712781043826,-2825.3,0.0003315,5]
[322105886,1712781043835,-2253.27,0.0003315,5]
[322105888,1712781043844,-500.0,0.0003315,5]
[322105890,1712781043855,-680.04,0.0003315,5]
[322105892,1712781043865,-1263.2,0.0003315,5]
[322105894,1712781043874,-2305.0,0.0003315,5]
[322105896,1712781043884,-500.0,0.0003315,5]
[322105898,1712781043893,-944.34,0.0003315,5]
[322105900,1712781043902,-500.0,0.0003315,5]
[322105902,1712781043911,-500.0,0.0003315,5]
[322105904,1712781043920,-16728.3,0.0003315,5]
[322105906,1712781043929,-500.0,0.0003315,5]
[322105908,1712781043938,-500.0,0.0003315,5]
[322105910,1712781043948,-500.0,0.0003315,5]
[322105912,1712781043958,-3541.98,0.0003315,5]
[322105914,1712781043967,-1126.23,0.0003315,5]
[322105916,1712781043976,-1666.07,0.0003315,5]
[322105918,1712781043986,-15792.54,0.0003315,5]
[322105920,1712781043995,-500.0,0.0003315,5]
[322105922,1712781044005,-500.0,0.0003315,5]
[322105925,1712781044015,-500.0,0.0003315,5]
[322105926,1712781044024,-500.0,0.0003315,5]
[322105929,1712781044034,-1078.81,0.0003315,5]
[322105931,1712781044043,-500.0,0.0003315,5]
[322105933,1712781044052,-1691.69,0.0003315,5]
[322105935,1712781044061,-6365.53,0.0003315,5]
[322105937,1712781044074,-243.327321,0.00033165,2]
[322105939,1712781044082,-199.182094,0.00033165,2]
[322105941,1712781044092,-586.0,0.000332,2]
[322105943,1712781044101,-166.666666,0.00033339,2]
[322105944,1712781044111,-202.7924704,0.00033342,2]
[322105947,1712781044122,-202.7924704,0.00033342,2]
[322105949,1712781044131,-202.7924704,0.00033342,2]
[322105951,1712781044140,-153.41612326,0.00033349,7]
[322105953,1712781044149,-173.64417349,0.00033383,7]
[322105955,1712781044158,-217.3433,0.000334,2]
[322105957,1712781044167,-297.38,0.00033423,2]
[322105959,1712781044176,-500.0,0.00033424,5]
[322105961,1712781044186,-500.0,0.00033424,5]
[322105963,1712781044195,-500.0,0.00033424,5]
[322105964,1712781044205,-500.0,0.00033424,5]
[322105967,1712781044214,-500.0,0.00033424,5]
[322105968,1712781044223,-500.0,0.00033424,5]
[322105971,1712781044233,-500.0,0.00033424,5]
[322105972,1712781044243,-500.0,0.00033424,5]
[322105974,1712781044253,-542.25,0.00033424,5]
[322105977,1712781044263,-500.0,0.00033424,5]
[322105979,1712781044272,-500.0,0.00033424,5]
[322105980,1712781044281,-500.0,0.00033424,5]
[322105983,1712781044291,-969.58,0.00033424,5]
[322105984,1712781044300,-500.0,0.00033424,5]
[322105987,1712781044310,-500.0,0.00033424,5]
[322105988,1712781044321,-500.0,0.00033424,5]
[322105991,1712781044332,-500.0,0.00033424,5]
[322105992,1712781044341,-918.07,0.00033424,5]
[322105994,1712781044351,-500.0,0.00033424,5]
[322105997,1712781044364,-500.0,0.00033424,5]
[322105999,1712781044373,-500.0,0.00033424,2]
[322106001,1712781044381,-500.0,0.00033424,5]
[322106002,1712781044394,-1242.48,0.00033424,5]
[322106004,1712781044403,-500.0,0.00033424,5]
[322106007,1712781044413,-528.0,0.00033424,5]
[322106009,1712781044422,-1700.55,0.00033424,5]
[322106011,1712781044431,-3113.66,0.00033424,5]
[322106013,1712781044440,-500.0,0.00033424,5]
[322106015,1712781044450,-500.0,0.00033424,5]
[322106016,1712781044459,-500.0,0.00033424,5]
[322106018,1712781044468,-500.0,0.00033424,5]
[322106019,1712781044477,-6594.48,0.00033424,5]
[322106021,1712781044486,-500.0,0.00033424,5]
[322106022,1712781044495,-500.0,0.00033424,5]
[322106024,1712781044504,-567.59,0.00033424,5]
[322106025,1712781044514,-5272.48,0.00033424,5]
[322106027,1712781044523,-500.0,0.00033424,5]
[322106028,1712781044533,-2129.47,0.00033424,5]
[322106030,1712781044542,-500.0,0.00033424,5]
[322106031,1712781044551,-769.3,0.00033424,5]
[322106033,1712781044559,-500.0,0.00033424,5]
[322106034,1712781044568,-500.0,0.00033424,5]
[322106036,1712781044577,-500.0,0.00033424,5]
[322106037,1712781044586,-820.65,0.00033424,5]
[322106039,1712781044595,-827.05,0.00033424,5]
[322106040,1712781044605,-838.46,0.00033424,5]
[322106042,1712781044614,-1719.66,0.00033424,5]
[322106043,1712781044627,-1431.09,0.00033424,5]
[322106045,1712781044636,-500.0,0.00033424,5]
[322106047,1712781044646,-731.47,0.00033424,5]
[322106048,1712781044656,-703.16,0.00033424,5]
[322106050,1712781044666,-251.18166221,0.00033424,5]
[322106051,1712781044675,-665.14,0.00033424,5]
[322106052,1712781044684,-1196.06,0.00033424,5]
[322106054,1712781044693,-500.0,0.00033424,5]
[322106056,1712781044703,-239.62143975,0.00033424,5]
[322106057,1712781044712,-500.0,0.00033424,5]
[322106058,1712781044721,-2680.8,0.00033424,5]
[322106059,1712781044730,-500.0,0.00033424,5]
[322106060,1712781044739,-979.58,0.00033424,5]
[322106061,1712781044749,-500.0,0.00033424,5]
[322106062,1712781044758,-2825.3,0.00033424,5]
[322106063,1712781044767,-2253.27,0.00033424,5]
[322106064,1712781044776,-500.0,0.00033424,5]
[322106065,1712781044785,-680.04,0.00033424,5]
[322106066,1712781044795,-1263.2,0.00033424,5]
[322106067,1712781044803,-2305.0,0.00033424,5]
[322106068,1712781044813,-500.0,0.00033424,5]
[322106069,1712781044823,-944.34,0.00033424,5]
[322106070,1712781044832,-500.0,0.00033424,5]
[322106071,1712781044841,-500.0,0.00033424,5]
[322106072,1712781044850,-16728.3,0.00033424,5]
[322106073,1712781044862,-500.0,0.00033424,5]
[322106074,1712781044872,-500.0,0.00033424,5]
[322106075,1712781044881,-500.0,0.00033424,5]
[322106076,1712781044890,-3541.98,0.00033424,5]
[322106077,1712781044899,-1126.23,0.00033424,5]
[322106079,1712781044908,-1666.07,0.00033424,5]
[322106080,1712781044918,-15792.54,0.00033424,5]
[322106082,1712781044927,-500.0,0.00033424,5]
[322106084,1712781044936,-500.0,0.00033424,5]
[322106085,1712781044945,-500.0,0.00033424,5]
[322106087,1712781044955,-500.0,0.00033424,5]
[322106088,1712781044964,-1078.81,0.00033424,5]
[322106090,1712781044973,-228.84717275,0.00033424,5]
[322106098,1712781045072,-1691.69,0.00033424,5]
[322106099,1712781045082,-6365.53,0.00033424,5]
[322106101,1712781045092,-1999.999999,0.0003351,2]
[322106102,1712781045101,-1069.890909,0.00033594,2]
[322106104,1712781045115,-986.366043,0.00033594,2]
[322106106,1712781045124,-493.185203,0.00033594,2]
[322106107,1712781045134,-3209.672727,0.00033594,2]
[322106109,1712781045143,-2465.912926,0.00033594,2]
[322106111,1712781045152,-178.315153,0.00033594,2]
[322106112,1712781045161,-164.394342,0.00033594,2]
[322106114,1712781045170,-178.315152,0.00033594,2]
[322106115,1712781045180,-164.394341,0.00033594,2]
[322106117,1712781045189,-173.64417349,0.00033595,7]
[322106119,1712781045198,-162.93637257,0.00033598,2]
[322106120,1712781045207,-153.41612326,0.00033679,7]
[322106122,1712781045216,-173.64417349,0.00033693,7]
[322106123,1712781045225,-297.38,0.00033697,2]
[322106125,1712781045234,-500.0,0.00033698,5]
[322106126,1712781045243,-500.0,0.00033698,5]
[322106128,1712781045252,-500.0,0.00033698,5]
[322106129,1712781045261,-500.0,0.00033698,5]
[322106131,1712781045271,-500.0,0.00033698,5]
[322106133,1712781045280,-500.0,0.00033698,5]
[322106135,1712781045289,-500.0,0.00033698,5]
[322106137,1712781045298,-500.0,0.00033698,5]
[322106139,1712781045308,-542.25,0.00033698,5]
[322106140,1712781045318,-500.0,0.00033698,5]
[322106141,1712781045327,-500.0,0.00033698,5]
[322106143,1712781045338,-500.0,0.00033698,5]
[322106145,1712781045347,-969.58,0.00033698,5]
[322106147,1712781045360,-500.0,0.00033698,5]
[322106148,1712781045371,-500.0,0.00033698,5]
[322106149,1712781045381,-500.0,0.00033698,5]
[322106150,1712781045391,-500.0,0.00033698,5]
[322106151,1712781045400,-918.07,0.00033698,5]
[322106152,1712781045409,-500.0,0.00033698,5]
[322106153,1712781045419,-500.0,0.00033698,5]
[322106154,1712781045428,-500.0,0.00033698,5]
[322106155,1712781045437,-1242.48,0.00033698,5]
[322106157,1712781045447,-500.0,0.00033698,5]
[322106159,1712781045456,-528.0,0.00033698,5]
[322106160,1712781045466,-1700.55,0.00033698,5]
[322106161,1712781045475,-3113.66,0.00033698,5]
[322106162,1712781045484,-500.0,0.00033698,5]
[322106163,1712781045494,-500.0,0.00033698,5]
[322106164,1712781045503,-500.0,0.00033698,5]
[322106165,1712781045513,-500.0,0.00033698,5]
[322106166,1712781045522,-6594.48,0.00033698,5]
[322106167,1712781045532,-500.0,0.00033698,5]
[322106168,1712781045542,-405.95057696,0.00033698,5]
[322106169,1712781045552,-567.59,0.00033698,5]
[322106170,1712781045561,-5272.48,0.00033698,5]
[322106171,1712781045570,-500.0,0.00033698,5]
[322106172,1712781045579,-2129.47,0.00033698,5]
[322106173,1712781045588,-500.0,0.00033698,5]
[322106174,1712781045598,-769.3,0.00033698,5]
[322106175,1712781045610,-500.0,0.00033698,5]
[322106176,1712781045622,-500.0,0.00033698,5]
[322106177,1712781045630,-500.0,0.00033698,5]
[322106178,1712781045640,-820.65,0.00033698,5]
[322106179,1712781045649,-827.05,0.00033698,5]
[322106180,1712781045659,-838.46,0.00033698,5]
[322106181,1712781045667,-1719.66,0.00033698,5]
[322106182,1712781045677,-1431.09,0.00033698,5]
[322106183,1712781045685,-369.54764808,0.00033698,5]
[322106184,1712781045695,-731.47,0.00033698,5]
[322106185,1712781045704,-703.16,0.00033698,5]
[322106186,1712781045713,-665.14,0.00033698,5]
[322106187,1712781045723,-1196.06,0.00033698,5]
[322106188,1712781045732,-500.0,0.00033698,5]
[322106189,1712781045741,-500.0,0.00033698,5]
[322106190,1712781045754,-2680.8,0.00033698,5]
[322106191,1712781045763,-500.0,0.00033698,5]
[322106192,1712781045772,-979.58,0.00033698,5]
[322106193,1712781045782,-500.0,0.00033698,5]
[322106194,1712781045791,-2825.3,0.00033698,5]
[322106195,1712781045801,-2253.27,0.00033698,5]
[322106196,1712781045810,-500.0,0.00033698,5]
[322106197,1712781045819,-680.04,0.00033698,5]
[322106198,1712781045829,-1263.2,0.00033698,5]
[322106199,1712781045838,-2305.0,0.00033698,5]
[322106200,1712781045847,-500.0,0.00033698,5]
[322106201,1712781045858,-944.34,0.00033698,5]
[322106202,1712781045868,-500.0,0.00033698,5]
[322106203,1712781045877,-500.0,0.00033698,5]
[322106204,1712781045887,-16728.3,0.00033698,5]
[322106205,1712781045896,-500.0,0.00033698,5]
[322106206,1712781045905,-500.0,0.00033698,5]
[322106207,1712781045914,-500.0,0.00033698,5]
[322106208,1712781045923,-3541.98,0.00033698,5]
[322106209,1712781045933,-1126.23,0.00033698,5]
[322106210,1712781045942,-1666.07,0.00033698,5]
[322106211,1712781045951,-15792.54,0.00033698,5]
[322106212,1712781045960,-500.0,0.00033698,5]
[322106213,1712781045969,-500.0,0.00033698,5]
[322106214,1712781045979,-500.0,0.00033698,5]
[322106215,1712781045988,-500.0,0.00033698,5]
[322106216,1712781045997,-1078.81,0.00033698,5]
[322106217,1712781046007,-1691.69,0.00033698,5]
[322106218,1712781046016,-6365.53,0.00033698,5]
[322106219,1712781046025,-173.64417349,0.00033721,7]
[322106220,1712781046034,-173.64417349,0.0003379,7]
[322106221,1712781046044,-1210.91030182,0.00033842,2]
[322106222,1712781046052,-3611.53931135,0.00033872,2]
[322106223,1712781046062,-46564.10505223,0.000339,2]
[322106224,1712781046071,-150.0,0.00033971,2]
[322106225,1712781046080,-500.0,0.00033972,5]
[322106226,1712781046090,-500.0,0.00033972,5]
[322106227,1712781046100,-500.0,0.00033972,5]
[322106228,1712781046110,-500.0,0.00033972,5]
[322106229,1712781046119,-500.0,0.00033972,5]
[322106230,1712781046128,-500.0,0.00033972,5]
[322106231,1712781046137,-500.0,0.00033972,5]
[322106233,1712781046147,-500.0,0.00033972,5]
[322106235,1712781046156,-542.25,0.00033972,5]
[322106237,1712781046165,-500.0,0.00033972,5]
[322106239,1712781046174,-500.0,0.00033972,5]
[322106241,1712781046183,-969.58,0.00033972,5]
[322106243,1712781046193,-500.0,0.00033972,5]
[322106245,1712781046202,-500.0,0.00033972,5]
[322106247,1712781046211,-500.0,0.00033972,5]
[322106249,1712781046220,-522.9462423,0.00033972,5]
[322106251,1712781046229,-918.07,0.00033972,5]
[322106253,1712781046238,-500.0,0.00033972,5]
[322106255,1712781046248,-500.0,0.00033972,5]
[322106257,1712781046257,-608.92419642,0.00033972,5]
[322106260,1712781046266,-1242.48,0.00033972,5]
[322106263,1712781046275,-500.0,0.00033972,5]
[322106266,1712781046285,-528.0,0.00033972,5]
[322106269,1712781046294,-1700.55,0.00033972,5]
[322106271,1712781046303,-3113.66,0.00033972,5]
[322106274,1712781046312,-500.0,0.00033972,5]
[322106277,1712781046321,-500.0,0.00033972,5]
[322106280,1712781046330,-500.0,0.00033972,5]
[322106283,1712781046340,-500.0,0.00033972,5]
[322106286,1712781046349,-6594.48,0.00033972,5]
[322106289,1712781046360,-500.0,0.00033972,5]
[322106292,1712781046370,-567.59,0.00033972,5]
[322106295,1712781046379,-5272.48,0.00033972,5]
[322106297,1712781046388,-500.0,0.00033972,5]
[322106299,1712781046398,-2129.47,0.00033972,5]
[322106301,1712781046407,-344.05727445,0.00033972,5]
[322106303,1712781046416,-769.3,0.00033972,5]
[322106305,1712781046425,-500.0,0.00033972,5]
[322106307,1712781046434,-500.0,0.00033972,5]
[322106309,1712781046443,-500.0,0.00033972,5]
[322106311,1712781046452,-820.65,0.00033972,5]
[322106313,1712781046461,-827.05,0.00033972,5]
[322106315,1712781046471,-838.46,0.00033972,5]
[322106317,1712781046480,-1719.66,0.00033972,5]
[322106319,1712781046489,-1431.09,0.00033972,5]
[322106321,1712781046498,-731.47,0.00033972,5]
[322106323,1712781046507,-703.16,0.00033972,5]
[322106325,1712781046516,-665.14,0.00033972,5]
[322106327,1712781046525,-1196.06,0.00033972,5]
[322106329,1712781046535,-500.0,0.00033972,5]
[322106331,1712781046543,-500.0,0.00033972,5]
[322106333,1712781046553,-2680.8,0.00033972,5]
[322106335,1712781046561,-500.0,0.00033972,5]
[322106337,1712781046570,-979.58,0.00033972,5]
[322106339,1712781046580,-500.0,0.00033972,5]
[322106341,1712781046589,-2825.3,0.00033972,5]
[322106343,1712781046598,-2253.27,0.00033972,5]
[322106345,1712781046611,-500.0,0.00033972,5]
[322106347,1712781046622,-680.04,0.00033972,5]
[322106349,1712781046631,-1263.2,0.00033972,5]
[322106351,1712781046641,-2305.0,0.00033972,5]
[322106353,1712781046650,-500.0,0.00033972,5]
[322106355,1712781046660,-944.34,0.00033972,5]
[322106357,1712781046670,-500.0,0.00033972,5]
[322106359,1712781046679,-500.0,0.00033972,5]
[322106361,1712781046688,-16728.3,0.00033972,5]
[322106363,1712781046699,-500.0,0.00033972,5]
[322106365,1712781046709,-500.0,0.00033972,5]
[322106367,1712781046718,-500.0,0.00033972,5]
[322106369,1712781046728,-3541.98,0.00033972,5]
[322106371,1712781046737,-1126.23,0.00033972,5]
[322106373,1712781046746,-1666.07,0.00033972,5]
[322106375,1712781046755,-15792.54,0.00033972,5]
[322106377,1712781046764,-500.0,0.00033972,5]
[322106378,1712781046773,-500.0,0.00033972,5]